bitfinex/quotes_ETHUSD_20240618
["timestamp","ask_amount","ask_price","bid_price","bid_amount"]
[1718724584484,7.43,3415.8,3414.7,5.7135]
[1718724584835,7.43,3415.8,3414.8,1.16421]
[1718724584980,7.43,3415.8,3414.7,2.785]
[1718724585305,7.43,3415.8,3413.6,9.9369]
[1718724585306,3.0,3415.4,3413.8,2.92924]
[1718724585480,3.0,3415.4,3413.7,5.71436]
[1718724585481,0.55,3415.3,3413.9,5.92919]
[1718724585678,0.55,3415.3,3413.9,2.92919]
[1718724585881,0.55,3415.3,3414.0,2.92911]
[1718724586083,0.55,3415.3,3414.3,2.92884]
[1718724587016,0.55,3415.3,3414.3,0.52481257]
[1718724587215,0.55,3415.3,3414.2,2.785]
[1718724587518,0.55,3415.3,3414.2,5.71391]
[1718724587677,0.55,3415.3,3414.5,2.92868]
[1718724587877,7.43,3415.8,3414.7,2.92851]
[1718724587878,10.43,3415.8,3414.7,2.92851]
[1718724588107,0.55,3415.7,3414.7,2.92851]
[1718724588312,0.55,3415.7,3414.2,2.785]
[1718724588514,0.55,3415.7,3414.7,2.92848]
[1718724588719,0.55,3415.7,3414.8,2.92838]
[1718724588891,7.43,3415.8,3415.0,2.92824]
[1718724589227,7.43,3415.8,3414.9,0.292838]
[1718724589228,7.43,3415.8,3415.2,2.928]
[1718724589381,7.43,3416.1,3415.2,2.928]
[1718724589598,7.43,3416.1,3415.3,2.92797]
[1718724589979,7.43,3416.1,3415.2,2.928]
[1718724589980,7.43,3416.1,3415.4,2.92791]
[1718724590220,7.43,3416.1,3415.6,2.92773]
[1718724590430,7.43,3416.6,3415.5,2.92782]
[1718724591217,7.43,3416.6,3415.4,2.92791]
[1718724591394,3.0,3416.4,3415.2,2.785]
[1718724591739,3.0,3416.4,3415.3,2.92796]
[1718724592021,3.0,3416.4,3415.4,2.92791]
[1718724592324,0.55,3416.5,3415.6,2.92774]
[1718724592618,0.55,3416.5,3415.4,2.92791]
[1718724592619,0.55,3416.5,3415.7,2.92758]
[1718724592824,7.43,3416.6,3415.7,2.92758]
[1718724593017,7.43,3416.6,3415.8,2.92754]
[1718724593193,7.43,3416.6,3415.6,2.92774]
[1718724593388,7.43,3416.6,3415.7,2.92764]
[1718724593583,7.43,3416.6,3415.8,2.92754]
[1718724593905,7.43,3416.6,3415.9,2.92748]
[1718724594333,7.43,3416.6,3415.7,2.92764]
[1718724594516,7.43,3416.6,3415.8,2.92755]
[1718724594819,7.43,3416.6,3415.9,2.92746]
[1718724595019,7.43,3416.6,3415.8,2.92755]
[1718724595183,7.43,3416.6,3415.9,2.92747]
[1718724595527,7.43,3416.6,3415.9,3.61295407]
[1718724595916,7.43,3416.6,3415.9,0.68548407]
[1718724596119,7.43,3416.6,3415.8,2.92756]
[1718724596319,7.43,3416.6,3415.3,2.92797]
[1718724596520,3.0,3416.9,3415.3,2.92797]
[1718724596521,3.0,3416.9,3415.6,2.92773]
[1718724597032,3.0,3416.9,3415.7,2.92761]
[1718724597403,3.0,3417.2,3416.0,2.92738]
[1718724597600,3.0,3417.2,3415.9,2.92748]
[1718724597601,0.55,3417.1,3415.9,2.92748]
[1718724597795,0.55,3417.1,3416.0,2.92736]
[1718724598434,3.0,3417.5,3416.3,2.92712]
[1718724598604,0.55,3417.4,3416.3,2.92712]
[1718724599530,3.0,3417.5,3416.2,2.92722]
[1718724600335,3.0,3417.1,3415.4,3.0]
[1718724600542,3.0,3417.1,3415.7,5.71265]
[1718724600715,3.0,3417.1,3415.7,2.785]
[1718724600915,0.55,3417.0,3415.8,2.92755]
[1718724601211,3.2925,3417.9,3416.3,2.92713]
[1718724601212,3.0,3417.5,3416.3,2.92713]
[1718724601407,3.0,3417.9,3416.3,5.71214]
[1718724601408,3.0,3417.8,3416.3,5.71214]
[1718724601601,3.0,3417.9,3416.6,2.92687]
[1718724601807,3.0,3417.9,3416.3,2.785]
[1718724602007,3.0,3417.8,3416.3,2.785]
[1718724602546,2.12832717,3417.7,3416.3,2.785]
[1718724603068,0.55,3417.6,3416.3,2.785]
[1718724603509,0.55,3417.7,3416.3,2.785]
[1718724603914,0.55,3417.7,3416.6,2.92686]
[1718724604644,0.55,3417.7,3416.4,2.92704]
[1718724604811,0.55,3417.7,3416.5,2.92695]
[1718724605012,0.55,3417.7,3416.6,2.92685]
[1718724605253,0.75,3419.4,3416.8,2.785]
[1718724605254,3.0,3418.3,3416.8,2.785]
[1718724605471,5.12802306,3418.2,3416.8,2.785]
[1718724605765,2.12809446,3418.1,3416.8,2.785]
[1718724606248,3.0,3418.2,3416.8,2.785]
[1718724606462,3.0,3418.2,3416.8,6.3692818]
[1718724606656,0.2925,3418.7,3417.1,2.92644]
[1718724606657,3.0,3418.4,3417.1,2.92644]
[1718724606859,0.40731507,3419.3,3417.0,2.9265]
[1718724606860,3.0,3418.3,3417.0,2.9265]
[1718724607378,1.172701,3419.0,3416.9,1.05877718]
[1718724607379,3.0,3418.5,3417.2,2.92635]
[1718724607521,3.0,3418.7,3417.3,2.92628]
[1718724607851,3.0,3418.8,3417.4,2.98469375]
[1718724608052,1.172597,3419.4,3417.6,2.92601]
[1718724608274,3.0,3419.1,3417.7,0.05850861]
[1718724608415,2.12764747,3419.0,3417.7,0.05850861]
[1718724608615,3.0,3419.0,3417.3,2.785]
[1718724608859,3.0,3419.0,3417.4,0.61098727]
[1718724609222,3.0,3419.0,3417.3,2.785]
[1718724609223,3.0,3418.5,3417.3,2.785]
[1718724609419,3.0,3418.5,3417.3,5.71128]
[1718724609634,3.0,3418.5,3417.3,2.785]
[1718724610380,0.55,3418.4,3416.8,2.785]
[1718724610584,3.55,3418.4,3416.4,3.0]
[1718724610720,3.0,3418.2,3416.4,5.92703]
[1718724610916,0.55,3418.1,3416.4,5.92703]
[1718724611166,0.55,3418.1,3416.5,4.090884]
[1718724611469,0.55,3418.2,3416.5,4.090884]
[1718724611640,3.0,3418.3,3416.5,4.090884]
[1718724611825,0.55,3418.2,3416.6,1.2803014]
[1718724612135,0.55,3418.2,3416.8,2.785]
[1718724612333,0.55,3418.5,3416.8,2.785]
[1718724612534,0.2925,3419.0,3417.3,5.71127]
[1718724612535,3.0,3419.0,3417.3,5.71127]
[1718724612765,3.0,3419.0,3417.4,0.05851207]
[1718724612968,3.0,3419.0,3417.3,5.71126]
[1718724613127,3.0,3419.0,3417.4,2.92618]
[1718724613329,3.0,3419.0,3417.3,2.785]
[1718724613330,3.0,3419.0,3417.5,0.863744]
[1718724613538,1.17259,3419.4,3416.8,2.785]
[1718724613539,3.0,3418.3,3416.8,2.785]
[1718724614446,0.55,3418.2,3416.8,2.785]
[1718724614627,0.008,3417.5,3416.8,2.785]
[1718724615566,0.008,3417.5,3416.9,10.33952]
[1718724615792,0.008,3417.5,3417.3,2.785]
[1718724616062,0.008,3417.5,3417.4,0.05837087]
[1718724616278,0.008,3417.5,3417.4,0.92798196]
[1718724616478,0.008,3417.5,3417.4,0.05837087]
[1718724616973,0.008,3417.5,3417.3,2.785]
[1718724617125,0.008,3417.5,3416.9,7.4129]
[1718724618586,0.008,3417.5,3416.8,2.785]
[1718724618751,0.008,3417.5,3416.9,0.2785]
[1718724618955,0.008,3417.5,3416.3,9.7331]
[1718724619261,0.008,3417.5,3416.3,12.66022]
[1718724619639,0.008,3417.5,3416.4,2.92704]
[1718724619977,0.008,3417.5,3416.9,2.92655]
[1718724620177,2.97631681,3419.4,3417.0,0.863833]
[1718724620178,3.0,3419.0,3417.0,0.863833]
[1718724620384,3.0,3419.3,3417.6,2.92602]
[1718724620683,1.50310567,3419.7,3417.8,2.785]
[1718724620839,2.12751554,3419.6,3417.9,0.05850841]
[1718724621037,3.0,3419.5,3418.0,0.60620304]
[1718724621264,2.12750452,3419.4,3418.0,0.60620304]
[1718724621569,2.12750452,3419.4,3418.1,0.05850838]
[1718724621817,0.30363654,3419.7,3418.1,0.05850838]
[1718724621818,2.12750452,3419.3,3418.1,0.05850838]
[1718724621981,3.30363654,3419.7,3418.2,0.35904714]
[1718724622138,2.12743336,3419.6,3418.3,0.05850156]
[1718724622537,2.12743336,3419.6,3418.3,2.785]
[1718724622741,3.30363654,3419.7,3418.4,0.99428471]
[1718724622742,3.0,3419.7,3418.4,0.99428471]
[1718724623934,3.0,3419.6,3418.4,0.99428471]
[1718724624372,0.55,3419.5,3418.4,0.99428471]
[1718724625080,3.0,3419.6,3418.4,0.99428471]
[1718724625248,3.0,3419.6,3418.5,1.40884293]
[1718724625449,1.172256,3420.4,3418.8,2.785]
[1718724625785,0.2925,3420.7,3418.8,2.785]
[1718724625786,6.0,3420.5,3418.8,2.785]
[1718724625939,3.0,3420.5,3418.9,0.2705]
[1718724626142,3.0,3420.4,3419.0,0.05848913]
[1718724626652,3.0,3420.4,3418.8,2.785]
[1718724626653,3.0,3420.1,3418.8,2.785]
[1718724626856,3.0,3420.0,3418.4,2.92534]
[1718724627054,3.0,3420.0,3418.3,2.785]
[1718724627055,0.55,3419.9,3418.3,2.785]
[1718724627679,3.0,3419.6,3417.8,2.785]
[1718724627894,0.55,3419.5,3417.8,2.785]
[1718724628098,3.0,3419.2,3417.8,2.785]
[1718724628246,3.0,3419.2,3417.8,3.74273]
[1718724628448,0.55,3419.1,3417.8,3.74273]
[1718724628845,0.55,3419.1,3417.8,0.95773]
[1718724629049,0.55,3419.1,3417.3,2.785]
[1718724629588,3.55,3419.1,3417.3,2.785]
[1718724630155,3.55,3419.1,3417.3,5.71124]
[1718724630479,3.55,3419.1,3417.3,5.71128]
[1718724630683,3.55,3419.1,3417.6,2.92599]
[1718724630882,0.55,3419.1,3417.8,2.785]
[1718724631084,3.55,3419.2,3417.8,2.785]
[1718724631381,3.55,3419.9,3417.8,2.785]
[1718724631585,0.17993197,3419.9,3418.3,2.785]
[1718724631898,3.0,3419.8,3418.3,2.785]
[1718724632089,0.17993197,3419.9,3418.3,2.785]
[1718724632380,3.0,3420.1,3418.3,2.785]
[1718724632590,3.0,3420.1,3418.3,5.71041]
[1718724632798,3.0,3420.1,3418.4,2.92531]
[1718724633200,3.0,3420.1,3418.3,5.71042]
[1718724633404,3.0,3420.1,3418.4,0.571042]
[1718724634099,0.55,3420.0,3418.4,0.571042]
[1718724634303,0.55,3420.0,3418.3,2.785]
[1718724636004,0.55,3420.0,3418.3,5.71042]
[1718724636523,0.55,3420.0,3418.4,2.92532]
[1718724636718,0.55,3420.0,3418.8,2.785]
[1718724636865,0.55,3420.0,3418.9,1.31073579]
[1718724637072,0.55,3420.3,3418.9,1.31073579]
[1718724637265,2.05681973,3420.4,3418.9,1.31073579]
[1718724637466,2.05681973,3420.4,3419.0,0.40957358]
[1718724637769,3.0,3420.5,3419.0,5.70982]
[1718724638087,4.50681973,3420.9,3419.1,2.96203261]
[1718724638405,4.50681973,3420.9,3419.2,3.91857486]
[1718724638627,3.30403651,3420.9,3419.3,2.92455]
[1718724638931,3.30403651,3420.9,3419.4,7.27056931]
[1718724639087,3.0,3420.9,3419.4,7.27056931]
[1718724639436,3.0,3420.9,3419.5,1.11890442]
[1718724639623,1.50681973,3421.1,3419.5,1.17738166]
[1718724639769,1.50681973,3421.1,3419.5,1.11890442]
[1718724639968,4.50681973,3421.1,3419.5,1.11890442]
[1718724640209,4.81085228,3421.0,3419.5,1.11890442]
[1718724640500,0.55,3420.9,3419.5,1.11890442]
[1718724640980,0.55,3420.9,3419.0,2.785]
[1718724640981,3.0,3420.7,3419.0,2.785]
[1718724641314,0.55,3420.6,3419.0,5.70976]
[1718724641474,0.55,3420.6,3419.2,2.92464]
[1718724641676,0.55,3420.6,3419.3,0.863446]
[1718724641901,0.55,3420.6,3419.3,3.788006]
[1718724642102,0.55,3420.7,3419.4,2.95994887]
[1718724642307,0.55,3420.9,3419.6,7.2969]
[1718724642604,0.55,3420.9,3419.7,0.05847579]
[1718724642809,1.50681973,3421.5,3419.9,2.92405]
[1718724642996,4.50681973,3421.7,3420.0,0.584819]
[1718724643313,3.0,3421.7,3420.0,2.785]
[1718724643514,3.0,3421.7,3420.1,0.570913]
[1718724643875,3.0,3421.7,3420.2,0.04911136]
[1718724644594,3.0,3421.7,3420.3,6.7809]
[1718724644799,3.0,3421.7,3420.1,0.570913]
[1718724645001,3.0,3421.7,3420.0,2.785]
[1718724645306,3.30430797,3421.7,3419.8,9.5659]
[1718724645512,3.0,3421.7,3420.0,2.92396]
[1718724645809,3.0,3421.7,3420.2,2.92375]
[1718724646017,3.0,3421.7,3420.3,2.82843225]
[1718724646786,3.0,3422.2,3420.4,7.2242]
[1718724646995,3.0,3422.2,3420.5,1.35609615]
[1718724646996,3.0,3422.1,3420.5,1.35609615]
[1718724648322,0.55,3422.0,3420.5,4.27957615]
[1718724648494,0.0182,3422.3,3420.8,2.785]
[1718724648678,0.0182,3422.3,3420.9,0.05845244]
[1718724649000,0.0182,3422.3,3420.8,2.785]
[1718724649390,3.0182,3422.3,3420.6,1.72124862]
[1718724650002,3.0,3422.0,3420.3,2.785]
[1718724650309,3.55,3421.9,3419.9,7.2578]
[1718724651023,3.0,3421.6,3419.9,7.2578]
[1718724651516,0.55,3421.5,3419.9,7.2578]
[1718724652062,0.55,3421.5,3419.4,7.2668]
[1718724652063,3.55,3421.5,3419.4,7.2668]
[1718724652216,0.55,3421.5,3419.4,7.5453]
[1718724652418,3.55,3421.5,3419.4,7.5453]
[1718724652650,3.55,3421.5,3419.4,10.46977]
[1718724653231,3.55,3421.5,3419.4,7.5453]
[1718724653552,3.55,3421.5,3419.5,1.325493]
[1718724654416,3.55,3421.5,3419.6,2.92429]
[1718724654744,3.55,3421.5,3419.5,4.249883]
[1718724654946,3.55,3421.5,3419.6,2.9243]
[1718724655117,3.55,3421.5,3419.7,1.4719483]
[1718724656777,3.55,3421.5,3419.8,2.785]
[1718724656993,0.55,3421.5,3419.8,5.70914]
[1718724657272,3.0,3421.8,3419.9,2.92405]
[1718724657478,1.52536576,3422.3,3420.1,2.92381]
[1718724657479,3.0,3422.2,3420.1,2.92381]
[1718724657630,3.0,3422.1,3420.2,7.4019]
[1718724657971,6.0,3422.1,3420.2,7.4019]
[1718724658282,3.0,3422.1,3420.2,7.4019]
[1718724658566,3.0,3422.2,3420.2,7.4019]
[1718724658794,3.0,3422.1,3420.3,2.785]
[1718724659090,3.0,3422.1,3420.4,1.31107]
[1718724659234,3.0,3422.1,3420.4,4.23468]
[1718724659434,3.0,3422.1,3420.5,0.02823709]
[1718724660252,3.0,3422.1,3420.4,1.31107]
[1718724660505,3.0,3422.1,3420.3,2.785]
[1718724660506,3.0,3422.1,3420.5,1.149797]
[1718724660852,3.0,3422.1,3420.7,2.92333]
[1718724661057,3.0,3422.1,3420.8,0.0584513]
[1718724661254,3.0,3422.1,3420.8,0.41316883]
[1718724661454,3.0,3422.1,3420.5,1.149797]
[1718724661692,3.0,3422.1,3420.5,4.073337]
[1718724662119,0.0182,3422.3,3420.8,5.70828]
[1718724662426,0.0182,3422.3,3421.3,2.785]
[1718724662567,0.0182,3422.3,3421.1,2.92301]
[1718724662568,0.0182,3422.3,3421.4,3.52729141]
[1718724662890,0.0182,3422.3,3421.4,0.03372041]
[1718724663100,0.0182,3422.3,3421.4,0.05844205]
[1718724663330,0.0182,3422.3,3421.4,2.98121205]
[1718724663469,0.0182,3422.3,3421.3,2.92278]
[1718724663799,0.0182,3422.3,3421.4,10.21215]
[1718724664001,0.0182,3422.3,3421.5,2.92266]
[1718724664173,0.0182,3422.3,3421.6,2.93890333]
[1718724664369,0.0182,3422.3,3421.5,2.92267]
[1718724664602,0.0182,3422.3,3421.6,1.591985]
[1718724665079,0.0182,3422.3,3421.3,2.785]
[1718724665322,0.5682,3422.3,3420.8,7.359]
[1718724665618,3.0,3422.2,3420.8,7.359]
[1718724665811,3.0,3422.2,3420.5,4.073327]
[1718724665812,3.0,3422.2,3420.5,1.149797]
[1718724665986,3.0,3422.2,3420.6,0.7073327]
[1718724665987,0.55,3422.1,3420.6,0.7073327]
[1718724666194,0.55,3422.1,3420.7,5.7083]
[1718724666797,0.5682,3422.3,3420.8,2.92328]
[1718724667009,0.5682,3422.3,3420.9,0.93390727]
[1718724667237,0.0182,3422.3,3421.2,2.785]
[1718724667534,0.0182,3422.3,3421.4,2.92276]
[1718724667844,0.0182,3422.3,3421.8,2.785]
[1718724668049,0.0182,3422.3,3421.8,5.7074]
[1718724668208,0.0182,3422.3,3421.9,4.46546]
[1718724668406,0.0182,3422.3,3421.9,1.54312]
[1718724668634,0.0182,3422.3,3422.2,2.92209]
[1718724668958,12.23,3423.6,3422.2,2.92209]
[1718724668959,7.43,3424.1,3422.7,2.92166]
[1718724669135,7.43,3424.1,3422.9,2.785]
[1718724669710,3.0,3424.0,3422.9,2.785]
[1718724669911,3.0,3424.0,3422.9,5.70648]
[1718724670340,3.0,3424.0,3423.0,7.1251]
[1718724670508,7.43,3424.1,3423.0,7.1251]
[1718724670707,7.43,3424.1,3423.1,0.99101]
[1718724671607,7.43,3424.1,3423.2,0.05841026]
[1718724671906,7.43,3424.1,3423.1,0.99101]
[1718724672108,3.0,3424.0,3422.4,2.785]
[1718724672307,3.0,3424.0,3422.0,7.2046]
[1718724672308,3.0,3423.7,3422.0,7.2046]
[1718724672657,3.55,3423.6,3422.1,0.99896]
[1718724674052,0.0182,3423.2,3421.6,6.9716]
[1718724674409,3.5682,3423.2,3421.6,6.9716]
[1718724674612,3.0,3422.8,3421.3,2.785]
[1718724674934,0.55,3422.7,3421.4,0.99337]
[1718724675123,3.55,3422.7,3421.4,0.99337]
[1718724675327,0.55,3422.7,3421.4,0.99337]
[1718724675549,3.0,3422.9,3421.4,3.91612]
[1718724675550,0.55,3422.8,3421.4,3.91612]
[1718724675767,3.0,3422.9,3421.5,0.670112]
[1718724675916,3.0,3422.9,3421.5,3.592782]
[1718724676120,3.0,3422.9,3421.8,9.8774]
[1718724676334,3.0,3422.9,3421.9,0.05843128]
[1718724676536,3.0,3422.9,3422.0,1.28583513]
[1718724676846,7.43,3423.0,3422.0,1.28583513]
[1718724678126,7.43,3423.0,3422.1,2.9221]
[1718724678321,7.43,3423.0,3422.0,1.28583513]
[1718724680374,0.55,3422.9,3421.8,9.8774]
[1718724680655,3.55,3422.9,3421.5,0.670112]
[1718724680831,3.55,3422.9,3421.6,0.02521738]
[1718724681022,3.55,3422.9,3421.6,0.05843853]
[1718724681965,3.0,3422.9,3421.6,0.05843853]
[1718724682191,3.0,3422.9,3421.5,0.670112]
[1718724682479,0.55,3422.8,3421.6,1.3704512]
[1718724683154,0.55,3422.8,3421.3,10.0344]
[1718724683364,0.55,3422.8,3421.3,12.95725]
[1718724683528,3.0,3422.9,3421.4,2.92276]
[1718724683731,3.0,3422.9,3421.3,10.0344]
[1718724683955,0.0182,3423.3,3421.3,10.0344]
[1718724684168,10.43,3423.4,3422.0,2.785]
[1718724684933,3.0,3423.3,3421.5,10.253]
[1718724685254,3.0,3422.9,3421.4,1.295731]
[1718724685440,3.0,3422.9,3421.0,7.2134]
[1718724685441,0.5682,3422.8,3421.0,7.2134]
[1718724685648,2.69343627,3422.8,3421.0,7.2134]
[1718724685847,5.12523627,3422.7,3421.0,7.2134]
[1718724686181,2.67541632,3422.6,3421.1,0.99984]
[1718724686472,5.12549484,3422.5,3421.1,0.99984]
[1718724686660,0.55,3422.6,3421.1,0.99984]
[1718724686661,0.55,3422.4,3421.1,0.99984]
[1718724686966,0.55,3422.6,3421.1,0.99984]
[1718724687187,0.55,3422.6,3420.6,3.6307727]
[1718724687188,0.0182,3422.4,3420.6,7.4621327]
[1718724687331,0.0182,3422.4,3420.4,2.785]
[1718724687332,3.0,3422.1,3420.4,2.785]
[1718724687684,5.67573894,3422.0,3420.4,2.785]
[1718724687833,2.12573894,3421.9,3420.5,0.2785]
[1718724688043,3.0,3421.7,3420.5,0.2785]
[1718724688234,0.55,3421.6,3420.1,6.7548]
[1718724688429,2.12605651,3421.5,3420.1,6.7548]
[1718724688667,0.55,3421.4,3420.1,6.7548]
[1718724688835,3.0,3421.5,3420.2,1.56576844]
[1718724689035,10.43,3421.6,3420.3,2.92364]
[1718724689267,10.43,3421.6,3420.4,0.05845519]
[1718724689440,10.43,3421.6,3420.2,1.546382]
[1718724689441,0.55,3421.5,3420.2,1.546382]
[1718724689672,0.55,3421.5,3420.3,0.8301182]
[1718724690249,10.43,3421.6,3420.4,0.05846308]
[1718724690774,10.43,3421.6,3420.3,0.8301182]
[1718724690957,0.55,3421.5,3420.3,0.8301182]
[1718724691167,3.0,3421.3,3419.5,6.9337]
[1718724691335,3.0,3421.3,3419.6,3.0]
[1718724691537,5.67626062,3421.2,3419.5,6.9337]
[1718724691737,0.0182,3421.0,3419.6,0.97187]
[1718724692046,0.5682,3421.0,3419.6,0.97187]
[1718724692366,3.5682,3421.0,3419.6,0.97187]
[1718724692533,3.0,3420.9,3419.6,0.97187]
[1718724692734,0.55,3420.8,3419.7,0.790557]
[1718724692941,0.5682,3421.0,3419.7,0.790557]
[1718724693168,0.0182,3421.0,3419.7,0.790557]
[1718724693372,0.0182,3421.0,3419.8,0.8696127]
[1718724694431,3.0,3421.2,3419.8,0.8696127]
[1718724694738,0.0182,3421.7,3420.4,2.92363]
[1718724694931,12.23,3422.1,3420.8,2.92327]
[1718724695132,12.23,3422.1,3420.9,0.35074354]
[1718724695338,12.23,3422.1,3420.0,6.8905]
[1718724695339,12.23,3422.1,3420.0,9.81447]
[1718724695570,12.23,3422.1,3420.3,3.0]
[1718724695737,12.23,3422.1,3420.1,3.0]
[1718724695939,13.73692073,3422.1,3420.5,2.92353]
[1718724696137,13.73692073,3422.1,3420.6,2.92341]
[1718724696138,12.23,3422.1,3420.6,2.92341]
[1718724696449,12.23,3422.1,3420.9,2.92318]
[1718724696654,12.23,3422.1,3420.8,2.92328]
[1718724696655,7.43,3422.1,3421.0,0.05844991]
[1718724697245,7.43,3422.1,3420.5,2.785]
[1718724697471,7.43,3422.1,3420.6,0.95749]
[1718724697672,3.0,3422.0,3420.6,3.88091]
[1718724698569,3.0,3422.0,3420.7,2.92336]
[1718724698871,3.0,3422.0,3420.9,2.92319]
[1718724699075,3.0,3422.0,3421.0,0.6349294]
[1718724699273,3.0,3422.0,3421.0,0.0502814]
[1718724699877,7.43,3422.1,3421.2,2.92293]
[1718724700036,7.43,3422.1,3421.4,2.92275]
[1718724700247,7.43,3422.1,3421.3,2.97312699]
[1718724700248,3.0,3422.7,3421.5,0.05844158]
[1718724700438,9.23830487,3423.1,3421.5,0.05844158]
[1718724700439,8.93692073,3423.1,3421.6,2.9226]
[1718724700667,3.0,3423.0,3421.7,0.63503792]
[1718724700873,3.0,3423.0,3421.8,0.05843205]
[1718724701057,2.12511118,3422.9,3421.8,0.05843205]
[1718724701267,4.50873346,3423.0,3421.8,0.05843205]
[1718724701643,3.6338666,3422.9,3421.8,0.05843205]
[1718724701867,3.6338666,3422.9,3421.5,2.785]
[1718724701868,3.0,3422.8,3421.5,2.785]
[1718724702218,3.0,3422.8,3421.6,0.02364811]
[1718724702219,2.12520934,3422.7,3421.6,0.02364811]
[1718724702468,3.0,3422.8,3421.6,0.05844048]
[1718724702777,4.50873346,3423.0,3421.6,3.57143053]
[1718724703074,4.50873346,3423.0,3421.6,3.57142053]
[1718724703370,3.0,3423.0,3421.8,7.4889]
[1718724703683,3.0,3423.0,3421.9,1.16445788]
[1718724704368,2.12504953,3422.9,3421.9,1.16445788]
[1718724704569,4.51020651,3423.0,3421.9,1.16445788]
[1718724704772,2.12503139,3422.9,3421.9,1.16445788]
[1718724705001,4.51020651,3423.0,3421.9,1.16445788]
[1718724705002,3.0,3423.0,3421.9,4.08673788]
[1718724705274,3.0,3423.0,3422.0,0.86533579]
[1718724705580,3.0,3423.0,3422.1,0.05843041]
[1718724707541,7.43,3423.1,3422.1,0.05843041]
[1718724708150,7.43,3423.1,3422.2,2.92208]
[1718724708352,7.43,3423.1,3422.3,0.73522999]
[1718724708557,8.94020651,3423.8,3422.4,9.6255]
[1718724708762,7.43,3423.8,3422.5,2.92176]
[1718724709080,7.43,3423.8,3422.6,1.546917]
[1718724709081,2.12445326,3423.7,3422.6,1.546917]
[1718724709257,7.43,3423.8,3422.6,1.546917]
[1718724710376,2.12455283,3423.7,3422.6,1.546917]
[1718724710571,5.12455283,3423.7,3422.7,1.4094327]
[1718724710742,3.0,3423.7,3422.7,1.4094327]
[1718724711548,3.0,3423.7,3422.4,9.6255]
[1718724711878,2.67463684,3423.6,3422.4,6.8405]
[1718724712040,2.67463684,3423.6,3421.8,2.92242]
[1718724712041,5.12463684,3423.5,3421.8,7.2067]
[1718724712263,5.12463684,3423.5,3421.9,1.37984744]
[1718724712264,3.63484335,3423.4,3421.9,1.37984744]
[1718724712591,4.51020651,3423.3,3422.2,2.92209]
[1718724712797,3.0,3423.5,3422.3,2.92199]
[1718724713098,3.0,3423.7,3422.7,2.92166]
[1718724713259,3.0,3423.7,3422.8,0.05842002]
[1718724713997,0.55,3423.6,3422.5,6.9129]
[1718724714202,4.18484895,3423.6,3422.6,0.69129]
[1718724714364,2.06020651,3423.6,3422.6,0.69129]
[1718724715056,3.63492979,3423.5,3422.6,0.69129]
[1718724715293,2.12472328,3423.4,3422.6,0.69129]
[1718724715497,2.12472328,3423.4,3422.5,6.9129]
[1718724715903,1.51020651,3423.5,3422.5,6.9129]
[1718724716112,4.18503154,3423.4,3422.0,6.9803]
[1718724716292,3.63503154,3423.3,3422.1,0.97653]
[1718724716477,0.55,3423.2,3422.1,0.97653]
[1718724716983,1.51020651,3423.2,3422.1,0.97653]
[1718724717497,1.51020651,3423.2,3421.6,0.59040005]
[1718724717498,1.51020651,3422.8,3421.6,0.59040005]
[1718724717897,0.55,3422.7,3421.6,0.59040005]
[1718724718092,2.06020651,3422.7,3421.6,0.59040005]
[1718724718393,3.63541294,3422.6,3421.7,0.76462]
[1718724718596,2.06020651,3422.7,3421.7,0.76462]
[1718724719177,1.51020651,3422.6,3421.7,0.76462]
[1718724719519,2.06020651,3422.7,3421.7,0.76462]
[1718724719866,0.55,3422.7,3421.7,0.76462]
[1718724720065,1.51020651,3422.8,3421.8,3.34949001]
[1718724720284,3.0,3422.9,3421.9,2.92234]
[1718724720485,3.0,3422.9,3421.8,0.368716]
[1718724721695,7.43,3423.0,3422.0,2.92225]
[1718724721896,7.43,3423.0,3422.3,6.9457]
[1718724722096,8.94020651,3423.3,3422.3,6.9457]
[1718724722418,8.94020651,3423.3,3422.4,0.69457]
[1718724722766,8.94020651,3423.3,3422.5,0.0584273]
[1718724723163,7.43,3423.3,3422.5,2.9801973]
[1718724723497,1.50914698,3423.8,3422.7,6.8253]
[1718724723688,1.50914698,3424.0,3422.9,2.92148]
[1718724724003,8.93914698,3424.1,3422.9,2.92148]
[1718724724217,8.93914698,3424.1,3423.0,1.266844]
[1718724724371,7.43,3424.1,3423.0,1.266844]
[1718724725371,7.43,3424.1,3423.2,2.92117]
[1718724725709,7.43,3424.1,3423.1,9.9028]
[1718724725914,7.43,3424.1,3423.2,1.1169644]
[1718724726476,7.43,3424.1,3423.3,0.05841656]
[1718724727309,7.43,3424.1,3422.6,10.1922]
[1718724727493,5.05913907,3424.0,3422.6,7.4072]
[1718724727693,5.05913907,3424.0,3422.7,0.810177]
[1718724727937,3.633654,3423.9,3422.7,0.810177]
[1718724728083,0.55,3423.8,3422.7,0.810177]
[1718724728283,0.55,3423.8,3422.1,9.5668]